bitfinex/quotes_ETHUSD_20250523
["timestamp","ask_amount","ask_price","bid_price","bid_amount"]
[1747996231663,0.1,2661.7,2661.4,25.752]
[1747996231859,0.18528113,2661.6,2661.4,25.752]
[1747996233307,0.1,2662.4,2661.4,11.252]
[1747996233582,6.02119737,2662.6,2660.9,1.86787715]
[1747996233583,0.1,2662.2,2661.5,11.252]
[1747996233784,1.5384,2662.1,2661.6,14.5]
[1747996234364,0.1,2662.2,2661.6,14.5]
[1747996236183,0.1,2662.2,2661.7,0.3758]
[1747996236373,0.1,2662.2,2661.7,31.355]
[1747996236551,0.1,2662.2,2661.8,11.251]
[1747996236982,1.6397,2661.9,2661.7,16.202]
[1747996237306,0.21405197,2662.3,2661.8,26.404]
[1747996237589,0.21405197,2662.3,2661.7,16.202]
[1747996237590,1.5397,2662.1,2661.9,26.403]
[1747996237907,1.5397,2662.1,2662.0,14.5]
[1747996238204,1.72498113,2662.1,2662.0,14.5]
[1747996238346,0.18528113,2662.1,2662.0,14.5]
[1747996238547,0.18528113,2662.1,2662.0,40.903]
[1747996241769,0.1,2661.7,2661.6,1.11963151]
[1747996241968,0.1,2661.7,2661.6,16.27163151]
[1747996241969,1.6026,2661.7,2661.6,16.27163151]
[1747996242984,1.6026,2661.7,2661.6,15.152]
[1747996245901,1.6026,2661.7,2661.6,29.652]
[1747996246090,0.1,2661.7,2661.6,29.652]
[1747996246305,0.1,2661.7,2661.6,45.854]
[1747996247108,1.5187,2662.0,2661.6,45.854]
[1747996247297,0.1,2661.7,2661.6,45.854]
[1747996247602,1.5187,2662.0,2661.6,45.854]
[1747996247814,0.1,2661.7,2661.6,45.854]
[1747996247996,0.1,2661.9,2661.6,45.854]
[1747996248588,0.18528113,2662.1,2661.6,45.854]
[1747996248787,0.1,2662.0,2661.6,45.854]
[1747996249803,0.18528113,2661.9,2661.6,45.854]
[1747996251278,0.18528113,2661.9,2661.7,1.49594142]
[1747996252033,0.18528113,2661.9,2661.8,14.5]
[1747996255538,0.05499171,2661.9,2661.8,14.5]
[1747996256804,0.05499171,2661.9,2661.8,40.876]
[1747996257133,5.83591624,2662.6,2573.5,0.0040404]
[1747996257134,0.65,2659.8,2659.7,2.71063509]
[1747996257297,0.1,2659.1,2659.0,6.39238151]
[1747996257495,1.6699,2659.1,2659.0,16.35]
[1747996257803,2.2199,2659.1,2659.0,21.27888972]
[1747996258003,1.6699,2659.1,2659.0,21.27888972]
[1747996258227,1.6699,2659.1,2659.0,16.35]
[1747996258431,1.6699,2659.1,2659.0,18.84626137]
[1747996258632,1.6699,2659.1,2659.0,18.31183138]
[1747996259009,1.6699,2659.1,2659.0,27.61]
[1747996259204,1.6699,2659.1,2659.0,11.255]
[1747996259519,1.6699,2659.1,2659.0,27.61]
[1747996260647,0.1,2659.1,2659.0,27.61]
[1747996263737,0.1,2659.1,2658.9,30.702]
[1747996263939,0.1,2659.1,2659.0,27.617]
[1747996264310,0.1,2659.1,2659.0,42.117]
[1747996265311,0.1,2659.3,2659.0,42.117]
[1747996265625,0.1,2659.7,2659.0,27.617]
[1747996266058,0.1,2659.7,2659.1,14.5]
[1747996266323,0.1,2659.8,2659.1,14.5]
[1747996266594,0.1,2660.3,2659.2,2.44033822]
[1747996266882,0.1,2660.3,2659.5,14.5]
[1747996268997,0.1,2659.8,2659.5,14.5]
[1747996269193,1.5374,2660.2,2658.9,16.202]
[1747996269194,0.1,2659.0,2658.9,16.202]
[1747996269358,0.1,2659.0,2658.9,32.563]
[1747996269873,2.1874,2659.0,2658.9,32.563]
[1747996270044,2.40614,2659.0,2658.9,32.563]
[1747996271463,1.85614,2659.0,2658.9,32.566]
[1747996271787,1.6374,2659.0,2658.9,32.566]
[1747996272987,0.1,2659.2,2658.9,32.566]
[1747996273363,1.5635,2659.4,2658.9,32.566]
[1747996273364,0.1,2659.0,2658.9,32.566]
[1747996274000,0.1,2659.4,2658.9,47.066]
[1747996274359,1.5635,2659.8,2658.9,32.566]
[1747996274707,0.1,2659.5,2658.9,32.566]
[1747996274910,0.1,2659.5,2659.0,14.5]
[1747996275270,0.1,2659.3,2659.0,14.5]
[1747996275699,0.1,2659.3,2659.1,27.628]
[1747996276264,0.1,2659.3,2659.2,14.5]
[1747996277402,0.1,2659.3,2659.2,25.762]
[1747996279211,0.05499171,2659.3,2659.2,25.762]
[1747996280216,5.83591624,2659.7,2659.2,25.762]
[1747996280923,5.83591624,2659.7,2659.2,14.5]
[1747996281132,5.83591624,2659.7,2659.3,27.628]
[1747996282338,5.83591624,2659.7,2659.4,27.628]
[1747996282539,5.83591624,2659.7,2659.5,27.628]
[1747996282841,6.0,2659.6,2659.2,14.5]
[1747996283018,6.0,2659.6,2659.3,27.627]
[1747996285415,6.0,2659.6,2659.2,14.5]
[1747996285853,6.0,2659.6,2659.3,27.625]
[1747996288539,6.0,2659.6,2659.2,14.5]
[1747996288743,6.0,2659.6,2659.4,27.281]
[1747996289447,6.0,2659.6,2659.5,27.281]
[1747996289647,0.1,2659.8,2659.5,27.281]
[1747996289838,1.6551,2659.7,2659.2,14.5]
[1747996290043,1.6551,2659.7,2659.3,27.281]
[1747996290876,1.6551,2659.7,2659.4,27.281]
[1747996291297,0.1,2659.3,2659.2,14.5]
[1747996291688,0.1,2659.3,2659.2,41.781]
[1747996292256,0.1,2659.6,2659.2,41.781]
[1747996292461,0.1,2659.4,2659.2,41.781]
[1747996292700,0.1,2659.3,2659.2,41.781]
[1747996292904,1.7551,2659.7,2659.2,41.781]
[1747996293079,1.7551,2659.7,2659.3,27.281]
[1747996293492,0.1,2659.4,2659.3,27.281]
[1747996294097,0.1,2659.4,2659.2,14.5]
[1747996294262,0.1,2659.4,2659.3,27.281]
[1747996294464,0.1,2659.4,2659.2,14.5]
[1747996294666,0.1,2659.4,2659.3,27.281]
[1747996294921,0.1,2659.6,2659.3,27.281]
[1747996295063,0.1,2659.8,2659.3,27.281]
[1747996295387,1.5468,2660.3,2659.3,27.281]
[1747996295703,0.1,2659.7,2659.3,27.281]
[1747996295891,0.1,2659.7,2659.4,16.021]
[1747996296219,0.1,2659.7,2659.5,11.261]
[1747996297333,0.1,2659.7,2659.2,14.5]
[1747996297694,0.1,2659.7,2659.3,27.281]
[1747996299605,0.1,2659.7,2659.2,14.5]
[1747996299909,0.1,2659.7,2659.4,27.281]
[1747996300106,0.1,2659.7,2659.5,16.02]
[1747996300410,0.1,2659.7,2657.9,0.3758]
[1747996300728,0.1,2659.7,2658.5,0.3758]
[1747996301227,0.1,2659.7,2658.9,14.5]
[1747996303433,1.5468,2660.3,2658.9,14.5]
[1747996303646,0.1,2659.7,2658.9,14.5]
[1747996304218,1.6706,2659.7,2659.0,11.261]
[1747996305452,0.1,2659.9,2659.0,11.261]
[1747996305767,0.1,2659.7,2659.0,11.261]
[1747996306320,0.1,2659.7,2659.1,32.236]
[1747996307416,0.1,2659.9,2659.1,32.236]
[1747996307821,0.1,2659.9,2659.2,14.5]
[1747996308465,1.6165,2660.0,2659.2,14.5]
[1747996308668,0.1,2659.8,2659.2,14.5]
[1747996309934,1.5165,2660.0,2659.2,14.5]
[1747996310135,1.6165,2660.0,2659.2,14.5]
[1747996310338,1.5165,2660.0,2659.2,14.5]
[1747996310652,0.1,2660.2,2659.2,14.5]
[1747996310849,1.6218,2660.3,2659.1,32.236]
[1747996311050,0.1,2660.5,2659.1,32.236]
[1747996311258,0.1,2660.2,2659.2,1.82390877]
[1747996311461,0.1,2660.5,2659.8,14.5]
[1747996311766,1.6218,2660.6,2659.9,16.02]
[1747996311767,0.1,2660.2,2659.9,16.02]
[1747996313172,1.5547,2660.1,2660.0,27.279]
[1747996313548,1.5547,2660.1,2660.0,16.019]
[1747996314843,1.5547,2660.1,2659.1,18.47653441]
[1747996315048,1.5547,2660.1,2660.0,11.26]
[1747996315247,1.5547,2660.1,2660.0,27.279]
[1747996315446,0.1,2660.0,2659.2,14.5]
[1747996315629,0.1,2660.0,2659.3,27.279]
[1747996315834,0.1,2660.0,2659.2,14.5]
[1747996316034,0.1,2660.0,2659.4,27.278]
[1747996318253,0.09615426,2660.0,2659.4,27.278]
[1747996318460,0.09615426,2660.0,2659.5,26.848]
[1747996318889,0.09615426,2660.0,2659.6,26.848]
[1747996319560,0.09615426,2660.0,2659.7,14.5]
[1747996319967,0.09615426,2660.0,2659.8,26.848]
[1747996321482,1.6535,2659.9,2659.8,26.848]
[1747996321701,0.09615426,2659.8,2659.7,14.5]
[1747996321872,0.09615426,2659.8,2659.7,26.848]
[1747996322043,1.68085426,2659.8,2659.7,26.848]
[1747996323187,2.23085426,2659.8,2659.7,26.848]
[1747996323394,2.45393969,2659.8,2659.7,26.848]
[1747996323994,0.09615426,2659.5,2659.2,14.5]
[1747996324385,1.5689,2659.4,2659.3,26.848]
[1747996325247,1.66505426,2659.7,2659.3,26.848]
[1747996325484,0.09615426,2659.5,2659.3,26.848]
[1747996325649,1.66505426,2659.7,2659.3,26.848]
[1747996326556,1.5689,2659.7,2659.4,15.589]
[1747996326759,1.6247,2660.0,2658.6,2.22264647]
[1747996326985,0.09615426,2660.1,2658.7,2.32982097]
[1747996327211,0.09615426,2660.1,2658.7,2.04002666]
[1747996327898,0.09615426,2660.1,2658.8,11.26]
[1747996328201,0.09615426,2660.1,2658.9,1.81764389]
[1747996328404,1.72085426,2660.3,2658.9,1.81764389]
[1747996328805,1.72085426,2660.3,2659.1,2.21207458]
[1747996329309,0.09615426,2660.1,2659.1,2.21207458]
[1747996331999,1.72085426,2660.3,2659.1,2.21207458]
[1747996332217,0.09615426,2660.1,2659.1,2.21207458]
[1747996334496,0.09615426,2660.1,2659.2,11.259]
[1747996335718,1.5099,2660.0,2659.2,11.259]
[1747996336223,1.5099,2660.0,2659.3,31.801]
[1747996337116,1.5399,2660.6,2659.3,33.61914807]
[1747996337637,1.5399,2660.6,2659.4,0.9258]
[1747996338019,1.5798,2660.9,2659.4,0.9258]
[1747996338206,1.5798,2660.9,2659.5,0.3758]
[1747996343568,1.5798,2660.9,2659.7,0.3758]
[1747996343727,1.5798,2660.9,2660.0,1.83148758]
[1747996345869,1.5798,2660.9,2659.8,1.83491442]
[1747996346170,1.5798,2660.9,2659.9,27.2158]
[1747996346792,1.5798,2660.9,2660.0,11.256]
[1747996347366,1.5798,2660.9,2660.1,15.583]
[1747996347688,1.5798,2660.9,2660.2,15.583]
[1747996347893,1.5798,2660.9,2660.3,16.209]
[1747996349772,1.5798,2660.9,2660.4,11.256]
[1747996352976,6.0,2660.8,2660.4,11.256]
[1747996356498,1.5798,2660.9,2660.5,14.5]
[1747996357538,1.5798,2660.9,2660.6,11.256]
[1747996357701,1.5798,2660.9,2660.7,15.216]
[1747996360885,1.5798,2660.9,2660.8,14.5]
[1747996365345,1.5798,2660.9,2660.8,30.708]
[1747996366667,0.96994629,2660.9,2660.8,30.708]
[1747996369185,0.09615426,2661.1,2660.8,30.708]
[1747996369318,0.09615426,2661.0,2660.8,30.708]
[1747996369724,1.68995426,2661.0,2660.8,30.708]
[1747996370021,1.68995426,2661.0,2660.8,16.208]
[1747996370855,1.5938,2661.0,2660.8,16.208]
[1747996371051,1.5938,2661.0,2660.9,14.5]
[1747996371828,0.09615426,2661.1,2660.9,14.5]
[1747996373472,0.09615426,2661.1,2660.8,16.208]
[1747996374451,0.09615426,2661.1,2660.9,14.5]
[1747996376476,0.09615426,2661.0,2660.9,14.5]
[1747996377275,6.0,2661.2,2660.9,14.5]
[1747996377574,0.09615426,2661.1,2660.9,14.5]
[1747996378888,0.09615426,2661.1,2660.8,16.208]
[1747996379095,0.09615426,2661.1,2660.9,26.469]
[1747996380020,0.09615426,2661.1,2661.0,25.754]
[1747996381987,0.09615426,2661.1,2661.0,40.96]
[1747996382909,0.09615426,2661.4,2661.0,40.96]
[1747996383112,0.09615426,2661.6,2661.0,40.96]
[1747996383411,1.5472,2661.7,2661.0,40.96]
[1747996383635,0.09615426,2661.8,2661.1,0.6099]
[1747996383768,0.09615426,2662.0,2661.1,0.6099]
[1747996384206,1.66905426,2662.3,2661.5,0.6099]
[1747996384505,0.09615426,2662.1,2661.6,15.206]
[1747996385214,0.09615426,2662.1,2661.7,14.5]
[1747996385368,1.5729,2662.5,2661.8,16.205]
[1747996385997,1.5729,2662.5,2661.9,14.5]
[1747996386319,0.04694969,2663.9,2661.9,14.5]
[1747996386320,0.09615426,2662.6,2662.1,0.6099]
[1747996386907,0.09615426,2662.6,2662.4,14.5]
[1747996387212,0.09615426,2662.6,2662.5,15.204]
[1747996387601,0.09615426,2662.6,2662.5,26.456]
[1747996388109,1.6298,2662.5,2662.4,14.5]
[1747996388317,1.6298,2662.5,2662.4,40.954]
[1747996392929,0.09615426,2662.6,2662.4,40.954]
[1747996400552,0.09615426,2662.6,2662.5,26.447]
[1747996400871,1.74105426,2662.6,2661.9,0.6099]
[1747996401161,1.74105426,2662.6,2662.5,25.749]
[1747996401341,0.09615426,2662.2,2662.1,11.249]
[1747996401538,1.65775426,2662.2,2662.1,42.645]
[1747996402984,2.20775426,2662.2,2662.1,42.645]
[1747996404171,1.65775426,2662.2,2662.1,42.645]
[1747996406348,0.09615426,2662.2,2662.1,57.145]
[1747996407311,0.09615426,2662.2,2662.1,57.146]
[1747996407794,0.09615426,2662.2,2662.1,11.25]
[1747996407993,0.09615426,2662.2,2662.1,26.449]
[1747996408863,0.09615426,2662.4,2662.1,40.949]
[1747996409703,0.09615426,2662.2,2662.1,40.949]
[1747996410414,6.09615426,2662.6,2662.1,40.949]
[1747996410586,6.09615426,2662.6,2662.1,41.35771668]
[1747996410761,0.09615426,2662.6,2662.1,41.35771668]
[1747996411389,0.09615426,2662.6,2662.2,0.6099]
[1747996412403,0.09615426,2662.6,2662.3,14.5]
[1747996416215,0.09615426,2662.6,2662.4,16.198]
[1747996416942,0.09615426,2662.6,2662.5,14.5]
[1747996418242,0.09615426,2662.6,2662.5,40.927]
[1747996418662,0.09615426,2662.6,2662.5,14.5]
[1747996418949,0.09615426,2662.6,2662.5,40.926]
[1747996419147,6.0,2663.0,2662.5,40.926]
[1747996419444,0.09615426,2662.7,2662.5,40.926]
[1747996421647,0.09615426,2662.7,2662.6,26.425]
[1747996422444,0.09615426,2662.7,2662.6,40.925]
[1747996422861,0.09615426,2662.7,2662.6,14.5]
[1747996423089,0.09615426,2662.7,2662.6,40.925]
[1747996423658,6.09615426,2662.7,2662.6,40.925]
[1747996425357,6.09615426,2662.7,2662.6,26.425]
[1747996425756,0.09615426,2663.1,2662.6,27.0349]
[1747996425923,0.09615426,2662.8,2662.6,27.0349]
[1747996426125,0.09615426,2662.8,2662.7,14.5]
[1747996427065,0.09615426,2662.8,2662.7,29.677]
[1747996427272,0.09615426,2662.8,2662.7,40.924]
[1747996429928,0.09615426,2662.8,2662.7,14.5]
[1747996430265,0.09615426,2662.8,2662.7,40.924]
[1747996432264,0.09615426,2662.8,2662.7,41.5339]
[1747996432433,0.09615426,2662.8,2662.7,14.5]
[1747996432629,0.09615426,2662.8,2662.7,40.924]
[1747996436144,0.03043043,2662.8,2662.7,26.424]
[1747996436345,0.03043043,2662.8,2662.7,15.177]
[1747996436641,0.03043043,2662.8,2662.7,26.424]
[1747996437191,0.03043043,2662.8,2662.7,40.924]
[1747996444590,0.03043043,2662.8,2662.7,57.119]
[1747996446092,6.0,2663.2,2662.7,57.119]
[1747996446252,6.03043043,2663.2,2662.7,42.619]
[1747996446451,0.03043043,2663.0,2662.7,42.619]
[1747996446691,0.03043043,2663.0,2662.8,14.5]
[1747996446859,0.03043043,2663.0,2662.9,26.397]
[1747996447687,6.03043043,2663.2,2662.9,40.897]
[1747996447916,6.0,2663.2,2663.0,0.6099]
[1747996448713,5.3906851,2663.2,2663.0,0.6099]
[1747996449922,0.03043043,2663.4,2663.0,0.6099]
[1747996450313,0.03043043,2663.2,2662.9,14.5]
[1747996450620,0.03043043,2663.2,2663.0,26.395]
[1747996454819,0.03043043,2662.8,2662.7,16.195]
[1747996455133,0.03043043,2662.8,2662.7,42.59]
[1747996455717,0.02843383,2662.8,2662.7,42.59]
[1747996457641,1.6122,2664.8,2662.7,42.59]
[1747996457856,0.02843383,2663.1,2662.7,42.59]
[1747996459005,0.04693229,2665.1,2662.8,1.43596141]
[1747996459006,0.02843383,2663.4,2662.8,1.43596141]
[1747996459259,0.02843383,2663.2,2662.9,26.395]
[1747996459402,0.02843383,2663.2,2662.8,0.9845747]
[1747996459746,0.02843383,2663.2,2662.9,26.395]
[1747996460042,0.02843383,2663.2,2662.8,0.9845747]
[1747996460204,0.02843383,2663.2,2662.9,26.8646441]
[1747996460405,0.02843383,2663.2,2663.0,0.4696441]
[1747996460639,1.5655,2663.6,2663.0,0.4696441]
[1747996460640,0.02843383,2663.4,2663.0,0.4696441]
[1747996460808,0.02843383,2663.1,2663.0,0.4696441]
[1747996461438,0.02843383,2663.1,2662.9,26.395]
[1747996461844,0.00887868,2663.1,2662.9,26.395]
[1747996462034,0.00887868,2663.1,2662.8,0.9845747]
[1747996462425,0.00887868,2663.1,2662.9,26.395]
[1747996462837,0.00887868,2663.1,2663.0,26.395]
[1747996464047,0.00887868,2663.2,2663.0,26.395]
[1747996464238,0.00887868,2663.2,2662.8,0.6099]
[1747996464544,0.00887868,2663.2,2662.9,26.395]
[1747996465454,0.00887868,2663.2,2662.8,0.6099]
[1747996465746,0.00887868,2663.2,2662.9,26.395]
[1747996466158,0.00887868,2663.4,2662.9,26.395]
[1747996466451,0.00887868,2663.1,2662.9,26.395]
[1747996467345,0.00887868,2663.1,2662.8,0.6099]
[1747996467550,0.00887868,2663.1,2663.0,26.395]
[1747996468948,0.00887868,2663.1,2663.0,26.393]
[1747996470725,5.39956378,2663.1,2663.0,26.393]
[1747996473873,5.39956378,2663.1,2663.0,15.148]
[1747996474171,5.39956378,2663.1,2663.0,26.394]
[1747996475474,0.00887868,2662.8,2662.7,16.195]
[1747996475777,0.00887868,2662.8,2662.7,42.557]
[1747996476471,0.00887868,2662.8,2662.7,57.057]
[1747996477176,5.39956378,2662.8,2662.7,45.811]
[1747996477357,5.39956378,2662.8,2662.7,57.057]
[1747996477554,7.04016378,2662.8,2662.7,30.695]
[1747996477878,7.74418016,2662.8,2662.7,57.057]
[1747996478376,7.04016378,2662.8,2662.7,57.057]
[1747996478577,7.59016378,2662.8,2662.7,42.558]
[1747996479697,7.59016378,2662.8,2662.7,31.312]
[1747996479885,0.00887868,2661.7,2661.4,0.2341]
[1747996480094,0.00887868,2661.7,2661.5,26.363]
[1747996480245,0.00887868,2661.7,2661.6,14.5]
[1747996482184,0.00887868,2661.7,2661.6,25.747]
[1747996485691,1.5578,2662.4,2661.7,0.2341]
[1747996486066,0.00887868,2662.2,2661.7,0.2341]
[1747996486270,0.00887868,2662.0,2661.8,30.698]
[1747996486746,0.00887868,2662.0,2661.9,26.368]
[1747996487152,0.00887868,2662.4,2661.9,26.368]
[1747996487373,1.6145,2662.8,2662.0,14.7341]
[1747996487794,0.00887868,2662.3,2662.0,14.7341]
[1747996488692,0.00887868,2662.5,2662.0,14.7341]
[1747996490271,0.00887868,2662.4,2662.1,0.2341]
[1747996490794,0.00887868,2662.4,2662.2,26.369]
[1747996490958,0.00887868,2662.4,2662.2,40.869]
[1747996491288,0.00887868,2662.4,2662.3,26.369]
[1747996491893,0.00887868,2662.4,2662.3,40.869]
[1747996492301,0.00887868,2662.7,2662.3,40.869]
[1747996492613,1.6344,2663.1,2662.3,40.869]
[1747996492614,0.00887868,2662.5,2662.3,40.869]
[1747996494018,0.00887868,2662.5,2662.3,14.5]
[1747996494217,0.00887868,2662.5,2662.4,26.368]
[1747996495218,0.00887868,2662.5,2662.4,15.12]
[1747996495399,0.00887868,2662.5,2662.4,26.368]
[1747996495878,1.67487868,2662.5,2662.4,26.368]
[1747996500526,1.67487868,2662.5,2662.4,15.12]
[1747996500729,2.22487868,2662.5,2662.4,15.12]
[1747996500917,2.44736655,2662.5,2662.4,26.369]
[1747996501611,2.44736655,2662.5,2662.4,15.12]
[1747996501816,2.44736655,2662.5,2662.4,26.369]
[1747996502884,2.44736655,2662.5,2662.4,15.12]
[1747996503139,2.44736655,2662.5,2662.4,26.369]
[1747996503428,1.52037868,2662.0,2661.9,14.5]
[1747996503585,1.52037868,2662.0,2661.9,40.836]
[1747996504131,6.91106378,2662.0,2661.8,16.198]
[1747996504341,7.46106378,2662.0,2661.9,26.336]
[1747996504514,13.29698002,2662.0,2661.9,26.336]
[1747996508224,0.00887868,2662.0,2661.9,26.336]
[1747996508419,0.00887868,2662.0,2661.9,26.76650553]
[1747996509551,0.00887868,2662.0,2660.6,0.9252]
[1747996509552,0.00887868,2662.0,2660.8,1.87420449]
[1747996509720,0.1,2661.9,2660.8,0.3793101]
[1747996509921,0.1,2661.9,2661.8,14.5]
[1747996510850,0.1,2662.1,2661.8,25.75]
[1747996512853,0.1,2662.1,2661.8,14.5]
[1747996513152,0.1,2662.1,2661.9,11.25]
[1747996514460,0.1,2662.4,2661.9,11.25]
[1747996514657,0.1,2662.3,2661.9,11.25]
[1747996515647,0.1,2662.2,2661.9,11.25]
[1747996516021,1.5274,2662.7,2661.9,11.25]
[1747996516365,0.1,2662.1,2662.0,31.288]
[1747996516660,0.1,2662.1,2662.0,45.788]
[1747996517449,0.0312802,2662.1,2662.0,45.788]
[1747996517918,0.0312802,2662.1,2662.0,57.038]
[1747996518637,0.02763491,2662.1,2662.0,57.038]
[1747996518857,1.5274,2662.7,2662.0,57.038]
[1747996518858,0.02763491,2662.3,2662.0,57.038]
[1747996521865,0.02763491,2662.3,2662.0,45.788]
[1747996522090,0.02763491,2662.3,2662.1,11.25]
[1747996522637,0.02763491,2662.5,2662.1,11.25]
[1747996522837,0.02763491,2662.2,2662.1,11.25]
[1747996523763,0.02763491,2662.5,2662.1,25.75]
[1747996524068,0.02763491,2662.2,2662.1,25.75]
[1747996524228,0.02763491,2662.2,2662.0,31.288]
[1747996525365,0.02763491,2662.2,2662.1,14.5]
[1747996525591,0.02763491,2662.5,2662.1,25.749]
[1747996526060,5.3906851,2662.6,2662.1,11.249]
[1747996526662,5.3906851,2662.6,2662.2,14.5]
[1747996527677,4.78131031,2662.6,2662.2,14.5]
[1747996527836,0.02763491,2663.0,2662.2,14.5]
[1747996527837,0.02763491,2663.0,2662.2,0.36174423]
[1747996528181,0.02763491,2663.0,2662.1,11.249]
[1747996528330,0.02763491,2663.0,2662.7,14.5]
[1747996528528,0.02763491,2663.0,2662.8,15.087]
[1747996529276,0.02763491,2663.0,2662.9,14.5]
[1747996529497,0.02763491,2663.2,2662.9,14.5]
[1747996529688,0.02763491,2663.0,2662.9,14.5]
[1747996529884,0.02763491,2663.0,2662.9,30.697]
[1747996530068,0.02763491,2663.0,2662.9,57.031]
[1747996530586,0.02763491,2663.0,2662.9,30.697]
[1747996530748,0.02763491,2663.0,2662.9,57.031]
[1747996531351,0.02763491,2663.0,2662.9,30.697]
[1747996531581,0.02763491,2663.0,2662.9,45.782]
[1747996531783,0.02763491,2663.0,2662.9,57.029]
[1747996532962,0.02763491,2663.2,2662.9,57.029]
[1747996533164,0.02763491,2663.1,2662.9,57.029]
[1747996534298,4.78131031,2663.3,2662.9,40.832]
[1747996534494,4.80894522,2663.3,2662.9,40.832]
[1747996535260,4.78131031,2663.3,2662.9,40.832]
[1747996536394,4.78131031,2663.3,2663.0,16.195]
[1747996536693,0.02763491,2663.7,2663.0,16.195]
[1747996537030,0.02763491,2663.9,2663.1,14.5]
[1747996539306,0.02763491,2663.9,2663.2,26.291]
[1747996539907,0.02763491,2663.7,2663.5,14.5]
[1747996541102,0.02763491,2664.1,2663.5,14.5]
[1747996542161,0.02763491,2664.3,2663.5,14.5]
[1747996542365,0.02763491,2664.1,2663.5,14.5]
[1747996542601,0.02763491,2663.9,2663.6,11.244]
[1747996542903,0.02763491,2663.9,2663.7,11.244]
[1747996543412,0.02763491,2663.9,2663.8,25.744]
[1747996543596,1.67293491,2663.9,2663.8,14.5]
[1747996543782,2.22293491,2663.9,2663.8,25.743]
[1747996543965,2.4452284,2663.9,2663.8,14.5]
[1747996544377,0.02763491,2663.3,2661.1,1.84875563]
[1747996544564,0.02763491,2663.3,2660.8,2.9902684]
[1747996544565,0.02763491,2662.9,2661.4,0.55]
[1747996544765,0.02763491,2662.9,2661.8,1.85475075]
[1747996544961,0.02763491,2663.2,2662.0,1.81040734]
[1747996545210,0.02763491,2663.2,2662.2,1.89035984]
[1747996545409,0.02763491,2663.2,2662.3,2.20306486]
[1747996545714,0.1,2663.4,2661.7,1.84188585]
[1747996545893,0.1,2663.4,2662.1,1.88835116]
[1747996546095,0.1,2663.2,2662.1,1.88835116]
[1747996546405,0.1,2663.3,2662.3,2.27080742]
[1747996546569,0.1,2663.3,2662.5,1.81943438]
[1747996546891,0.1,2663.3,2662.6,11.243]
[1747996547091,0.1,2663.2,2662.6,11.243]
[1747996547678,1.5218,2663.7,2662.6,11.243]
[1747996548070,0.1,2663.2,2662.6,11.243]
[1747996548367,0.1,2663.2,2662.2,1.81305806]
[1747996548570,1.6883,2663.2,2662.3,28.55780742]
[1747996548807,1.6883,2663.2,2662.4,15.044]
[1747996551010,1.6883,2663.2,2662.5,26.289]
[1747996552125,0.1,2662.8,2662.6,11.244]
[1747996553319,0.1,2662.8,2662.5,15.045]
[1747996553320,0.1,2662.8,2662.7,26.289]
[1747996553521,0.1,2662.8,2662.7,15.045]
[1747996553732,0.1,2662.8,2662.7,26.289]
[1747996554803,0.1,2663.0,2662.7,26.289]
[1747996555024,1.5883,2663.2,2662.7,26.289]
[1747996555260,1.6883,2663.2,2662.7,26.289]
[1747996555543,0.1,2663.4,2662.7,26.289]
[1747996556250,0.1,2663.4,2662.8,16.192]
[1747996558370,0.1,2663.6,2662.8,16.192]
[1747996559467,1.5955,2663.7,2662.8,16.192]
[1747996559968,0.1,2663.5,2662.8,16.192]
[1747996560468,0.1,2663.2,2662.8,16.192]
[1747996560881,0.1,2663.2,2662.9,26.29]
[1747996561184,4.78131031,2663.6,2662.9,26.29]
[1747996561348,0.03346226,2663.4,2662.9,26.29]
[1747996561553,0.03346226,2663.5,2662.9,26.29]
[1747996562150,4.78131031,2663.6,2662.9,26.29]
[1747996562349,0.03346226,2663.4,2662.9,26.29]
[1747996563250,4.78131031,2663.6,2662.9,26.29]
[1747996563451,0.03346226,2663.5,2662.9,26.29]
[1747996564373,4.78131031,2663.6,2662.9,26.29]
[1747996564675,0.03346226,2663.5,2662.9,26.29]
[1747996564870,4.78131031,2663.6,2662.9,26.29]
[1747996565758,0.03346226,2663.5,2662.9,26.29]
[1747996566134,0.03346226,2663.6,2662.9,26.29]
[1747996566356,0.03346226,2663.3,2663.0,16.191]
[1747996566972,1.62936226,2663.3,2663.1,26.254]
[1747996568075,1.62936226,2663.3,2663.0,16.191]
[1747996568253,1.62936226,2663.3,2663.2,26.254]
[1747996569081,1.62936226,2663.3,2663.0,16.191]
[1747996569239,1.62936226,2663.3,2663.1,26.254]
[1747996570658,1.62936226,2663.3,2663.1,15.01]
[1747996570853,1.62936226,2663.3,2663.2,11.244]
[1747996571594,1.53886226,2663.1,2663.0,16.191]
[1747996571782,6.87017257,2663.1,2663.0,42.445]
[1747996572088,8.14078145,2663.1,2663.0,42.445]
[1747996572443,4.78131031,2663.1,2663.0,42.445]
[1747996572877,1.55056226,2663.3,2663.0,42.445]
[1747996573081,1.6439,2663.5,2663.0,42.445]
[1747996576881,6.42521031,2663.5,2663.0,42.445]